[Event "Skalica SCHAEFFLER Open 2019"]
[Site "Skalica"]
[Date "2019.08.26"]
[Round "3.8"]
[White "Kadlcik, Marek"]
[Black "Visvader, Kristof"]
[Result "1/2-1/2"]
[ECO "D02"]
[WhiteElo "1259"]
[BlackElo "1389"]
[Annotator "NA"]
[PlyCount "111"]
[EventDate "2019.08.25"]
[EventType "swiss"]
[EventCountry "SVK"]
[SourceTitle "playchess.com"]
[Source "ChessBase"]
[SourceQuality "1"]
[TimeControl "40/5400+30:1800+30"]

1. Nf3 {[%emt 0:01:38]} d5 {[%emt 0:00:01]} 2. d4 {[%emt 0:00:01]} Nf6 {[%emt 0:00:29]} 3. Bf4 {[%emt 0:00:19]} e6 {[%emt 0:01:16]} 4. e3 {[%emt 0:02:22]} c6 {[%emt 0:01:28]} 5. Bd3 {[%emt 0:00:30]} Bd6 {[%emt 0:07:07]} 6. Bxd6 {[%emt 0:00:44]} Qxd6 {[%emt 0:05:13]} 7. O-O {[%emt 0:01:08]} O-O {[%emt 0:02:23]} 8. h3 {[%emt 0:00:37]} Nbd7 {[%emt 0:02:54]} 9. Nbd2 {[%emt 0:01:07]} e5 {[%emt 0:08:58]} 10. dxe5 {[%emt 0:00:33]} Nxe5 {[%emt 0:00:23]} 11. Nxe5 {[%emt 0:00:28]} Qxe5 {[%emt 0:00:17]} 12. c3 {[%emt 0:00:36]} Bd7 {[%emt 0:08:03]} 13. Nf3 {[%emt 0:00:52]} Qc7 {[%emt 0:00:48]} 14. Qc2 {[%emt 0:00:46]} h6 {[%emt 0:02:56]} 15. Rad1 {[%emt 0:03:46]} Rfe8 {[%emt 0:02:12]} 16. c4 {[%emt 0:02:57]} dxc4 {[%emt 0:01:20]} 17. Bxc4 {[%emt 0:00:31]} Be6 {[%emt 0:02:55]} 18. Bxe6 {[%emt 0:02:04]} Rxe6 {[%emt 0:00:30]} 19. Rd3 {[%emt 0:07:22]} Rd8 {[%emt 0:03:03]} 20. Rfd1 {[%emt 0:00:41]} Red6 {[%emt 0:02:19]} 21. Rxd6 {[%emt 0:06:30]} Rxd6 {[%emt 0:00:24]} 22. Nd4 {[%emt 0:02:21]} Qd7 {[%emt 0:03:34]} 23. Rc1 {[%emt 0:06:57]} Nd5 {[%emt 0:05:11]} 24. a3 {[%emt 0:04:08]} Rg6 {[%emt 0:01:05]} 25. Qf5 {[%emt 0:03:02]} Qxf5 {[%emt 0:02:42]} 26. Nxf5 {[%emt 0:00:34]} Re6 {[%emt 0:08:27]} 27. Kf1 {[%emt 0:02:02]} Ne7 {[%emt 0:01:43]} 28. Nd4 {[%emt 0:01:20]} Rd6 {[%emt 0:01:09]} 29. Ke2 {[%emt 0:02:25]} g6 {[%emt 0:00:29]} 30. f3 {[%emt 0:04:25]} Nd5 {[%emt 0:02:46]} 31. g3 {[%emt 0:03:42]} Kf8 {[%emt 0:04:57]} 32. Nb3 {[%emt 0:02:43]} b6 {[%emt 0:01:47]} 33. Nd4 {[%emt 0:03:41]} c5 {[%emt 0:01:08]} 34. Nb5 {[%emt 0:01:29]} Rd7 {[%emt 0:00:47]} 35. e4 {[%emt 0:05:02]} Ne7 {[%emt 0:01:58]} 36. Nc3 {[%emt 0:06:00]} Ke8 {[%emt 0:01:48]} 37. Nb5 {[%emt 0:02:49]} Kd8 {[%emt 0:03:07]} 38. Rc2 {[%emt 0:07:46]} a6 {[%emt 0:01:35]} 39. Nc3 {[%emt 0:00:22]} Kc7 {[%emt 0:00:13]} 40. Ke3 {[%emt 0:02:09]} Kc6 {[%emt 0:01:29]} 41. Na2 {[%emt 0:33:00]} b5 {[%emt 0:31:22]} 42. Nb4+ {[%emt 0:02:58]} Kb6 {[%emt 0:01:11]} 43. Nd3 {[%emt 0:00:27]} Rc7 {[%emt 0:01:52]} 44. Ne5 {[%emt 0:02:24]} Nc6 {[%emt 0:01:33]} 45. Ng4 {[%emt 0:03:48]} h5 {[%emt 0:00:17]} 46. Nf6 {[%emt 0:00:13]} Ne7 {[%emt 0:00:47]} 47. Rd2 {[%emt 0:00:00]} c4 {[%emt 0:00:00]} 48. Kd4 {[%emt 0:00:00]} a5 {[%emt 0:00:00]} 49. Kc3 {[%emt 0:00:00]} Kc6 {[%emt 0:00:00]} 50. g4 {[%emt 0:00:00]} hxg4 {[%emt 0:00:00]} 51. hxg4 {[%emt 0:00:00]} Nc8 {[%emt 0:00:00]} 52. f4 {[%emt 0:00:00]} Nb6 {[%emt 0:00:00]} 53. e5 {[%emt 0:00:00]} Na4+ {[%emt 0:00:00]} 54. Kc2 {[%emt 0:00:00]} b4 {[%emt 0:00:00]} 55. Rd6+ {[%emt 0:00:00]} Kb5 {[%emt 0:00:00]} 56. axb4 {[%emt 0:01:01]} 1/2-1/2

[Event "Skalica SCHAEFFLER Open 2019"]
[Site "Skalica"]
[Date "2019.08.26"]
[Round "3.9"]
[White "Kozusnik, Roman"]
[Black "Drabek, Martin"]
[Result "1-0"]
[ECO "D11"]
[WhiteElo "1231"]
[BlackElo "1381"]
[Annotator "NA"]
[PlyCount "89"]
[EventDate "2019.08.25"]
[EventType "swiss"]
[EventCountry "SVK"]
[SourceTitle "playchess.com"]
[Source "ChessBase"]
[SourceQuality "1"]
[TimeControl "40/5400+30:1800+30"]

1. d4 {[%emt 0:08:08]} d5 {[%emt 0:00:00]} 2. c4 {[%emt 0:00:12]} Bf5 {[%emt 0:01:30]} 3. e3 {[%emt 0:00:42]} e6 {[%emt 0:00:43]} 4. Nc3 {[%emt 0:01:04]} c6 {[%emt 0:00:45]} 5. Nf3 {[%emt 0:01:23]} Nd7 {[%emt 0:01:54]} 6. cxd5 {[%emt 0:03:19]} exd5 {[%emt 0:03:07]} 7. Bd3 {[%emt 0:00:22]} Bg4 {[%emt 0:01:56]} 8. h3 {[%emt 0:05:19]} Bxf3 {[%emt 0:01:47]} 9. Qxf3 {[%emt 0:00:25]} Qf6 {[%emt 0:01:00]} 10. Qxf6 {[%emt 0:06:12]} Ngxf6 {[%emt 0:05:20]} 11. O-O {[%emt 0:00:45]} Bb4 {[%emt 0:00:57]} 12. a3 {[%emt 0:01:03]} Bxc3 {[%emt 0:00:36]} 13. bxc3 {[%emt 0:00:04]} O-O {[%emt 0:01:03]} 14. c4 {[%emt 0:03:56]} c5 {[%emt 0:06:49]} 15. Bb2 {[%emt 0:05:45]} Rac8 {[%emt 0:02:54]} 16. cxd5 {[%emt 0:01:28]} Nxd5 {[%emt 0:01:01]} 17. Bf5 {[%emt 0:04:21]} Rfd8 {[%emt 0:04:06]} 18. dxc5 {[%emt 0:08:13]} Rxc5 {[%emt 0:01:09]} 19. Bd4 {[%emt 0:04:12]} Ra5 {[%emt 0:01:19]} 20. Rfd1 {[%emt 0:08:23]} Nxe3 {[%emt 0:05:30]} 21. Bxh7+ {[%emt 0:00:29]} Kxh7 {[%emt 0:00:33]} 22. Bxe3 {[%emt 0:00:07]} b6 {[%emt 0:02:10]} 23. Rd3 {[%emt 0:04:18]} Re5 {[%emt 0:02:26]} 24. Rad1 {[%emt 0:01:00]} Re7 {[%emt 0:00:43]} 25. Bf4 {[%emt 0:00:52]} Re4 {[%emt 0:08:03]} 26. Bc7 {[%emt 0:01:22]} Rc8 {[%emt 0:02:15]} 27. Rxd7 {[%emt 0:00:24]} Rc4 {[%emt 0:00:50]} 28. Bg3 {[%emt 0:01:33]} Ra4 {[%emt 0:01:41]} 29. R1d3 {[%emt 0:00:58]} f6 {[%emt 0:00:55]} 30. R7d4 {[%emt 0:01:40]} Rc1+ {[%emt 0:01:06]} 31. Kh2 {[%emt 0:00:49]} Rxd4 {[%emt 0:00:50]} 32. Rxd4 {[%emt 0:00:04]} Rc3 {[%emt 0:00:21]} 33. Bd6 {[%emt 0:01:54]} Kg6 {[%emt 0:01:28]} 34. g4 {[%emt 0:01:14]} f5 {[%emt 0:01:10]} 35. Bb4 {[%emt 0:01:08]} Rc2 {[%emt 0:03:30]} 36. Kg3 {[%emt 0:02:31]} a5 {[%emt 0:04:48]} 37. Bd6 {[%emt 0:05:28]} Rc3+ {[%emt 0:02:07]} 38. f3 {[%emt 0:00:40]} fxg4 {[%emt 0:01:33]} 39. hxg4 {[%emt 0:00:02]} Kf7 {[%emt 0:01:53]} 40. Rf4+ {[%emt 0:02:10]} Ke6 {[%emt 0:00:39]} 41. Bf8 {[%emt 0:30:03]} g5 {[%emt 0:31:27]} 42. Rf5 {[%emt 0:01:10]} Rc8 {[%emt 0:02:04]} 43. Bg7 {[%emt 0:00:21]} Rc5 {[%emt 0:01:46]} 44. Rf6+ {[%emt 0:01:21]} Kd7 {[%emt 0:00:53]} 45. Rxb6 {[%emt 0:00:17]} 1-0

[Event "Skalica SCHAEFFLER Open 2019"]
[Site "Skalica"]
[Date "2019.08.26"]
[Round "3.10"]
[White "Londin, Martin"]
[Black "Londinova, Jasmina Marie"]
[Result "1-0"]
[ECO "C50"]
[WhiteElo "1930"]
[BlackElo "1231"]
[Annotator "NA"]
[PlyCount "65"]
[EventDate "2019.08.25"]
[EventType "swiss"]
[EventCountry "SVK"]
[SourceTitle "playchess.com"]
[Source "ChessBase"]
[SourceQuality "1"]
[TimeControl "40/5400+30:1800+30"]

1. e4 {[%emt 0:00:00]} e5 {[%emt 0:00:00]} 2. Nf3 {[%emt 0:00:00]} Nc6 {[%emt 0:00:00]} 3. d4 {[%emt 0:00:00]} exd4 {[%emt 0:00:31]} 4. Bc4 {[%emt 0:00:00]} h6 {[%emt 0:00:29]} 5. O-O {[%emt 0:00:18]} Bc5 {[%emt 0:00:38]} 6. c3 {[%emt 0:00:09]} dxc3 {[%emt 0:00:17]} 7. Qd5 {[%emt 0:00:11]} Qf6 {[%emt 0:01:01]} 8. Nxc3 {[%emt 0:02:49]} Bd4 {[%emt 0:02:43]} 9. Nxd4 {[%emt 0:01:20]} Nxd4 {[%emt 0:00:08]} 10. e5 {[%emt 0:00:23]} Nf3+ {[%emt 0:03:59]} 11. gxf3 {[%emt 0:02:26]} Qg6+ {[%emt 0:00:20]} 12. Kh1 {[%emt 0:00:09]} Ne7 {[%emt 0:00:05]} 13. Qd1 {[%emt 0:00:37]} Qf5 {[%emt 0:00:39]} 14. Qe2 {[%emt 0:01:04]} a6 {[%emt 0:00:46]} 15. Bd3 {[%emt 0:01:00]} Qe6 {[%emt 0:00:47]} 16. Rg1 {[%emt 0:00:52]} g6 {[%emt 0:00:29]} 17. Bd2 {[%emt 0:00:46]} b5 {[%emt 0:00:28]} 18. a3 {[%emt 0:03:23]} Bb7 {[%emt 0:00:46]} 19. Rg3 {[%emt 0:01:01]} Nf5 {[%emt 0:00:58]} 20. Bxf5 {[%emt 0:00:34]} Qxf5 {[%emt 0:00:07]} 21. Re1 {[%emt 0:02:27]} O-O-O {[%emt 0:00:17]} 22. Ne4 {[%emt 0:02:53]} d6 {[%emt 0:02:40]} 23. exd6 {[%emt 0:01:26]} cxd6 {[%emt 0:00:06]} 24. Ba5 {[%emt 0:01:05]} Rd7 {[%emt 0:00:57]} 25. Rc1+ {[%emt 0:01:11]} Kb8 {[%emt 0:00:00]} 26. Nxd6 {[%emt 0:00:49]} Qd5 {[%emt 0:01:13]} 27. Nxb7 {[%emt 0:00:53]} Qxb7 {[%emt 0:00:15]} 28. Qe5+ {[%emt 0:00:21]} Ka7 {[%emt 0:00:18]} 29. Qxh8 {[%emt 0:00:45]} h5 {[%emt 0:00:14]} 30. Qe5 {[%emt 0:00:43]} Ka8 {[%emt 0:00:22]} 31. Rc7 {[%emt 0:00:30]} Rxc7 {[%emt 0:00:19]} 32. Qxc7 {[%emt 0:00:28]} Qd5 {[%emt 0:00:26]} 33. Bb6 {[%emt 0:04:04]} 1-0

[Event "Skalica SCHAEFFLER Open 2019"]
[Site "Skalica"]
[Date "2019.08.27"]
[Round "4.1"]
[White "Londin, Martin"]
[Black "Kastler, Peter"]
[Result "1-0"]
[ECO "C01"]
[WhiteElo "1930"]
[BlackElo "1724"]
[Annotator "NA"]
[PlyCount "40"]
[EventDate "2019.08.25"]
[EventType "swiss"]
[EventCountry "SVK"]
[SourceTitle "playchess.com"]
[Source "ChessBase"]
[SourceQuality "1"]
[TimeControl "40/5400+30:1800+30"]

1. e4 {[%emt 0:00:00]} e6 {[%emt 0:00:16]} 2. d4 {[%emt 0:00:00]} d5 {[%emt 0:00:05]} 3. exd5 {[%emt 0:00:00]} exd5 {[%emt 0:00:09]} 4. Nc3 {[%emt 0:00:00]} Nf6 {[%emt 0:00:52]} 5. Bg5 {[%emt 0:00:06]} Be7 {[%emt 0:00:30]} 6. Nf3 {[%emt 0:00:07]} Bg4 {[%emt 0:00:46]} 7. Be2 {[%emt 0:00:07]} O-O {[%emt 0:01:48]} 8. O-O {[%emt 0:00:09]} c6 {[%emt 0:00:23]} 9. h3 {[%emt 0:00:18]} Bh5 {[%emt 0:01:22]} 10. Ne5 {[%emt 0:01:19]} Bxe2 {[%emt 0:00:24]} 11. Qxe2 {[%emt 0:00:20]} Nbd7 {[%emt 0:01:29]} 12. f4 {[%emt 0:00:36]} Re8 {[%emt 0:03:30]} 13. Rae1 {[%emt 0:01:04]} Nxe5 {[%emt 0:07:43]} 14. fxe5 {[%emt 0:03:11]} Nd7 {[%emt 0:03:57]} 15. e6 {[%emt 0:04:45]} Nf6 {[%emt 0:03:17]} 16. exf7+ {[%emt 0:11:22]} Kxf7 {[%emt 0:00:39]} 17. Qe6+ {[%emt 0:12:29]} Kf8 {[%emt 0:00:15]} 18. Na4 {[%emt 0:06:29]} Qc8 {[%emt 0:05:23]} 19. Nc5 {[%emt 0:08:50]} Bxc5 {[%emt 0:03:13]} 20. Rxf6+ {[%emt 0:03:33]} gxf6 {[%emt 0:02:02]} 1-0

[Event "Skalica SCHAEFFLER Open 2019"]
[Site "Skalica"]
[Date "2019.08.27"]
[Round "4.2"]
[White "Romanova, Ela"]
[Black "Podskubka, Ondrej"]
[Result "1/2-1/2"]
[ECO "B31"]
[WhiteElo "1337"]
[BlackElo "1684"]
[Annotator "NA"]
[PlyCount "82"]
[EventDate "2019.08.25"]
[EventType "swiss"]
[EventCountry "SVK"]
[SourceTitle "playchess.com"]
[Source "ChessBase"]
[SourceQuality "1"]
[TimeControl "40/5400+30:1800+30"]

1. e4 {[%emt 0:00:00]} c5 {[%emt 0:00:00]} 2. Nf3 {[%emt 0:00:00]} Nc6 {[%emt 0:00:00]} 3. Bb5 {[%emt 0:00:00]} g6 {[%emt 0:02:05]} 4. c3 {[%emt 0:00:13]} Bg7 {[%emt 0:00:23]} 5. O-O {[%emt 0:00:21]} Qb6 {[%emt 0:01:04]} 6. Ba4 {[%emt 0:02:19]} Nf6 {[%emt 0:00:38]} 7. Qe2 {[%emt 0:00:55]} O-O {[%emt 0:00:35]} 8. Rd1 {[%emt 0:03:34]} d6 {[%emt 0:00:56]} 9. h3 {[%emt 0:00:42]} Bd7 {[%emt 0:00:25]} 10. Bc2 {[%emt 0:02:24]} Rac8 {[%emt 0:01:55]} 11. d4 {[%emt 0:15:28]} cxd4 {[%emt 0:01:06]} 12. Nxd4 {[%emt 0:03:27]} Nxd4 {[%emt 0:05:02]} 13. Rxd4 {[%emt 0:09:15]} Be6 {[%emt 0:20:10]} 14. Rd1 {[%emt 0:12:28]} Rfd8 {[%emt 0:12:29]} 15. Nd2 {[%emt 0:04:10]} d5 {[%emt 0:12:52]} 16. Bd3 {[%emt 0:11:25]} dxe4 {[%emt 0:15:01]} 17. Nxe4 {[%emt 0:01:13]} Nxe4 {[%emt 0:01:08]} 18. Bxe4 {[%emt 0:01:58]} Rxd1+ {[%emt 0:00:43]} 19. Qxd1 {[%emt 0:00:13]} Rd8 {[%emt 0:00:17]} 20. Qe2 {[%emt 0:00:40]} Qd6 {[%emt 0:05:12]} 21. Be3 {[%emt 0:07:42]} b6 {[%emt 0:03:02]} 22. a3 {[%emt 0:06:53]} f5 {[%emt 0:06:43]} 23. Bf3 {[%emt 0:00:41]} Bb3 {[%emt 0:01:34]} 24. Bg5 {[%emt 0:08:34]} Rd7 {[%emt 0:03:39]} 25. Qb5 {[%emt 0:04:13]} Bc2 {[%emt 0:01:58]} 26. Qc4+ {[%emt 0:01:21]} Kh8 {[%emt 0:00:31]} 27. g3 {[%emt 0:02:25]} h6 {[%emt 0:00:12]} 28. Be3 {[%emt 0:00:34]} Kh7 {[%emt 0:01:15]} 29. Qe2 {[%emt 0:00:28]} Ba4 {[%emt 0:00:46]} 30. Qc4 {[%emt 0:00:45]} b5 {[%emt 0:01:20]} 31. Qe2 {[%emt 0:00:20]} e5 {[%emt 0:00:24]} 32. Kf1 {[%emt 0:00:44]} e4 {[%emt 0:00:24]} 33. Bg2 {[%emt 0:00:05]} Qd5 {[%emt 0:01:04]} 34. Ke1 {[%emt 0:00:36]} Bb3 {[%emt 0:00:38]} 35. Qd2 {[%emt 0:00:24]} Qc6 {[%emt 0:00:22]} 36. Bd4 {[%emt 0:00:54]} Bxd4 {[%emt 0:00:26]} 37. cxd4 {[%emt 0:00:06]} Rc7 {[%emt 0:00:24]} 38. Qb4 {[%emt 0:00:37]} Qc4 {[%emt 0:00:50]} 39. Qxc4 {[%emt 0:00:24]} Rxc4 {[%emt 0:00:14]} 40. Bf1 {[%emt 0:00:17]} Rxd4 {[%emt 0:00:43]} 41. Bxb5 {[%emt 0:30:24]} g5 {[%emt 0:31:03]} 1/2-1/2

[Event "Skalica SCHAEFFLER Open 2019"]
[Site "Skalica"]
[Date "2019.08.27"]
[Round "4.4"]
[White "Fizerova, Lucie"]
[Black "Kozusnik, Roman"]
[Result "1-0"]
[ECO "C42"]
[WhiteElo "1563"]
[BlackElo "1231"]
[Annotator "NA"]
[PlyCount "76"]
[EventDate "2019.08.25"]
[EventType "swiss"]
[EventCountry "SVK"]
[SourceTitle "playchess.com"]
[Source "ChessBase"]
[SourceQuality "1"]
[TimeControl "40/5400+30:1800+30"]

1. e4 {[%emt 0:00:00]} e5 {[%emt 0:00:00]} 2. Nf3 {[%emt 0:00:00]} Nf6 {[%emt 0:00:00]} 3. Nxe5 {[%emt 0:00:09]} d6 {[%emt 0:00:17]} 4. Nf3 {[%emt 0:00:07]} Nxe4 {[%emt 0:00:14]} 5. d4 {[%emt 0:00:20]} Be7 {[%emt 0:01:11]} 6. Bd3 {[%emt 0:00:19]} Nf6 {[%emt 0:01:34]} 7. O-O {[%emt 0:00:25]} O-O {[%emt 0:01:35]} 8. c4 {[%emt 0:01:23]} Bg4 {[%emt 0:03:20]} 9. Nbd2 {[%emt 0:01:06]} Nbd7 {[%emt 0:01:31]} 10. Qc2 {[%emt 0:01:06]} c5 {[%emt 0:08:40]} 11. d5 {[%emt 0:02:12]} Ne5 {[%emt 0:02:56]} 12. Nxe5 {[%emt 0:04:09]} dxe5 {[%emt 0:00:03]} 13. b3 {[%emt 0:01:34]} Bh5 {[%emt 0:02:33]} 14. Bb2 {[%emt 0:01:40]} Bd6 {[%emt 0:01:44]} 15. Rae1 {[%emt 0:01:59]} Qc7 {[%emt 0:01:17]} 16. h3 {[%emt 0:01:00]} Bg6 {[%emt 0:00:49]} 17. Re3 {[%emt 0:16:18]} Bxd3 {[%emt 0:03:11]} 18. Qxd3 {[%emt 0:01:07]} Rae8 {[%emt 0:05:59]} 19. Rfe1 {[%emt 0:01:48]} Re7 {[%emt 0:02:03]} 20. Qf5 {[%emt 0:02:41]} Nd7 {[%emt 0:05:24]} 21. Ne4 {[%emt 0:02:01]} f6 {[%emt 0:02:29]} 22. Rg3 {[%emt 0:03:19]} g6 {[%emt 0:05:49]} 23. Qh5 {[%emt 0:07:55]} Rg7 {[%emt 0:02:08]} 24. Qh6 {[%emt 0:01:55]} Be7 {[%emt 0:02:27]} 25. h4 {[%emt 0:06:29]} Rff7 {[%emt 0:09:06]} 26. Qd2 {[%emt 0:02:07]} Bd6 {[%emt 0:00:48]} 27. Rge3 {[%emt 0:08:45]} h6 {[%emt 0:01:29]} 28. Nxd6 {[%emt 0:04:10]} Qxd6 {[%emt 0:00:07]} 29. f4 {[%emt 0:00:38]} g5 {[%emt 0:04:31]} 30. hxg5 {[%emt 0:02:31]} hxg5 {[%emt 0:02:54]} 31. fxe5 {[%emt 0:01:06]} fxe5 {[%emt 0:01:01]} 32. Bxe5 {[%emt 0:02:16]} Nxe5 {[%emt 0:00:02]} 33. Rxe5 {[%emt 0:00:02]} Rf4 {[%emt 0:05:49]} 34. Re6 {[%emt 0:02:08]} Qd7 {[%emt 0:00:03]} 35. Re8+ {[%emt 0:01:10]} Kh7 {[%emt 0:01:14]} 36. Qd3+ {[%emt 0:00:52]} Kh6 {[%emt 0:00:33]} 37. R1e6+ {[%emt 0:01:01]} Kh5 {[%emt 0:00:13]} 38. Rh8+ {[%emt 0:00:25]} Kg4 {[%emt 0:00:36]} 1-0

[Event "Skalica SCHAEFFLER Open 2019"]
[Site "Skalica"]
[Date "2019.08.27"]
[Round "4.5"]
[White "Hrubsa, Marian"]
[Black "Vach, Jozef"]
[Result "1-0"]
[ECO "C68"]
[WhiteElo "1888"]
[BlackElo "1722"]
[Annotator "NA"]
[PlyCount "69"]
[EventDate "2019.08.25"]
[EventType "swiss"]
[EventCountry "SVK"]
[SourceTitle "playchess.com"]
[Source "ChessBase"]
[SourceQuality "1"]
[TimeControl "40/5400+30:1800+30"]

1. e4 {[%emt 0:00:00]} e5 {[%emt 0:00:00]} 2. Nf3 {[%emt 0:00:00]} Nc6 {[%emt 0:00:00]} 3. Bb5 {[%emt 0:00:00]} a6 {[%emt 0:00:00]} 4. Bxc6 {[%emt 0:00:00]} dxc6 {[%emt 0:00:11]} 5. O-O {[%emt 0:00:00]} Bg4 {[%emt 0:00:35]} 6. h3 {[%emt 0:00:00]} Bxf3 {[%emt 0:00:14]} 7. Qxf3 {[%emt 0:00:02]} Qf6 {[%emt 0:00:10]} 8. Qg3 {[%emt 0:00:36]} g5 {[%emt 0:00:36]} 9. d4 {[%emt 0:02:10]} Be7 {[%emt 0:03:18]} 10. dxe5 {[%emt 0:01:09]} Qg6 {[%emt 0:00:59]} 11. Re1 {[%emt 0:06:31]} h5 {[%emt 0:00:22]} 12. e6 {[%emt 0:05:59]} Bd6 {[%emt 0:04:38]} 13. exf7+ {[%emt 0:01:29]} Kxf7 {[%emt 0:01:47]} 14. Qxg5 {[%emt 0:00:59]} Re8 {[%emt 0:02:08]} 15. Qxg6+ {[%emt 0:02:06]} Kxg6 {[%emt 0:00:02]} 16. f4 {[%emt 0:01:10]} Ne7 {[%emt 0:02:17]} 17. Be3 {[%emt 0:04:10]} Kf7 {[%emt 0:01:31]} 18. Nd2 {[%emt 0:00:41]} Ng6 {[%emt 0:00:48]} 19. e5 {[%emt 0:01:40]} Be7 {[%emt 0:02:07]} 20. g3 {[%emt 0:02:12]} Ke6 {[%emt 0:00:25]} 21. Nf3 {[%emt 0:03:10]} Ref8 {[%emt 0:07:29]} 22. Rad1 {[%emt 0:06:02]} h4 {[%emt 0:00:24]} 23. Nd4+ {[%emt 0:00:40]} Kf7 {[%emt 0:02:22]} 24. g4 {[%emt 0:02:21]} Rfg8 {[%emt 0:01:35]} 25. Nf3 {[%emt 0:01:46]} Ke8 {[%emt 0:00:19]} 26. f5 {[%emt 0:01:36]} Nf8 {[%emt 0:00:01]} 27. Rd3 {[%emt 0:01:08]} Nh7 {[%emt 0:02:43]} 28. Red1 {[%emt 0:00:51]} Nf8 {[%emt 0:00:17]} 29. f6 {[%emt 0:00:57]} Bb4 {[%emt 0:00:20]} 30. Ng5 {[%emt 0:03:56]} Rxg5 {[%emt 0:01:37]} 31. Bxg5 {[%emt 0:00:00]} Kf7 {[%emt 0:00:57]} 32. Rd8 {[%emt 0:09:09]} Rg8 {[%emt 0:01:03]} 33. Bf4 {[%emt 0:05:13]} Rg6 {[%emt 0:02:51]} 34. Be3 {[%emt 0:02:15]} Ke6 {[%emt 0:00:32]} 35. c3 {[%emt 0:01:08]} 1-0

[Event "Skalica SCHAEFFLER Open 2019"]
[Site "Skalica"]
[Date "2019.08.28"]
[Round "4.6"]
[White "Hrdlicka, Martin"]
[Black "Tutkova, Ludmila"]
[Result "0-1"]
[ECO "B00"]
[WhiteElo "1661"]
[BlackElo "1085"]
[Annotator "NA"]
[PlyCount "116"]
[EventDate "2019.08.25"]
[EventType "swiss"]
[EventCountry "SVK"]
[TimeControl "40/5400+30:1800+30"]

1. e4 {[%emt 0:00:00]} b6 {[%emt 0:00:01]} 2. d4 {[%emt 0:00:00]} Bb7 {[%emt 0:00:04]} 3. Nc3 {[%emt 0:00:00]} Nf6 {[%emt 0:00:28]} 4. Bd3 {[%emt 0:00:17]} e6 {[%emt 0:00:58]} 5. Qe2 {[%emt 0:09:20]} d6 {[%emt 0:03:08]} 6. Nf3 {[%emt 0:05:13]} Be7 {[%emt 0:01:37]} 7. O-O {[%emt 0:00:39]} O-O {[%emt 0:00:29]} 8. e5 {[%emt 0:04:33]} dxe5 {[%emt 0:01:31]} 9. dxe5 {[%emt 0:00:11]} Nfd7 {[%emt 0:04:33]} 10. Bf4 {[%emt 0:10:03]} Nc5 {[%emt 0:08:28]} 11. Rad1 {[%emt 0:06:17]} Qc8 {[%emt 0:06:02]} 12. Ne4 {[%emt 0:18:19]} Nxd3 {[%emt 0:02:36]} 13. cxd3 {[%emt 0:01:12]} f6 {[%emt 0:05:15]} 14. exf6 {[%emt 0:02:25]} Bxf6 {[%emt 0:00:20]} 15. Nxf6+ {[%emt 0:00:58]} Rxf6 {[%emt 0:00:15]} 16. Be5 {[%emt 0:11:06]} Bxf3 {[%emt 0:01:16]} 17. gxf3 {[%emt 0:00:05]} Rg6+ {[%emt 0:00:13]} 18. Kh1 {[%emt 0:00:06]} Nc6 {[%emt 0:01:26]} 19. Rg1 {[%emt 0:06:16]} Rxg1+ {[%emt 0:03:07]} 20. Rxg1 {[%emt 0:01:11]} Nxe5 {[%emt 0:00:46]} 21. Qxe5 {[%emt 0:00:33]} Qd7 {[%emt 0:00:19]} 22. Rg4 {[%emt 0:08:39]} Rf8 {[%emt 0:02:39]} 23. Kg2 {[%emt 0:03:07]} Qf7 {[%emt 0:01:28]} 24. Rg3 {[%emt 0:00:33]} c5 {[%emt 0:04:17]} 25. d4 {[%emt 0:02:22]} cxd4 {[%emt 0:00:53]} 26. Qxd4 {[%emt 0:00:11]} Qf6 {[%emt 0:00:15]} 27. Qd7 {[%emt 0:00:37]} a5 {[%emt 0:02:08]} 28. Qc6 {[%emt 0:03:40]} e5 {[%emt 0:00:28]} 29. Qb7 {[%emt 0:01:30]} e4 {[%emt 0:03:50]} 30. Qxe4 {[%emt 0:00:46]} Qxb2 {[%emt 0:00:16]} 31. Rh3 {[%emt 0:00:48]} h6 {[%emt 0:00:12]} 32. Qg6 {[%emt 0:03:12]} Qf6 {[%emt 0:01:35]} 33. Qe4 {[%emt 0:00:46]} Qf7 {[%emt 0:03:28]} 34. Rg3 {[%emt 0:00:32]} Qxa2 {[%emt 0:00:40]} 35. Qg6 {[%emt 0:00:12]} Qf7 {[%emt 0:00:43]} 36. Qxb6 {[%emt 0:00:24]} Ra8 {[%emt 0:01:03]} 37. Qxh6 {[%emt 0:01:10]} a4 {[%emt 0:02:07]} 38. Qc6 {[%emt 0:00:34]} Ra7 {[%emt 0:01:58]} 39. Qc8+ {[%emt 0:00:38]} Kh7 {[%emt 0:04:27]} 40. Rh3+ {[%emt 0:00:23]} Kg6 {[%emt 0:00:25]} 41. Qg4+ {[%emt 0:31:01]} Kf6 {[%emt 0:30:16]} 42. Qd4+ {[%emt 0:00:00]} Kg6 {[%emt 0:00:00]} 43. Rh4 {[%emt 0:00:00]} Ra5 {[%emt 0:00:00]} 44. Qe4+ {[%emt 0:00:00]} Qf5 {[%emt 0:00:00]} 45. Qxf5+ {[%emt 0:00:00]} Kxf5 {[%emt 0:00:00]} 46. Rh5+ {[%emt 0:00:00]} g5 {[%emt 0:00:00]} 47. Kg3 {[%emt 0:00:00]} Kg6 {[%emt 0:00:00]} 48. Kg4 {[%emt 0:00:00]} a3 {[%emt 0:00:00]} 49. f4 {[%emt 0:00:00]} a2 {[%emt 0:00:00]} 50. fxg5 {[%emt 0:00:00]} a1=Q {[%emt 0:00:00]} 51. Rh6+ {[%emt 0:00:00]} Kf7 {[%emt 0:00:00]} 52. Rf6+ {[%emt 0:00:00]} Kg7 {[%emt 0:00:00]} 53. h4 {[%emt 0:00:00]} Ra4+ {[%emt 0:00:00]} 54. Kg3 {[%emt 0:00:00]} Qc3+ {[%emt 0:00:00]} 55. f3 {[%emt 0:00:00]} Qd4 {[%emt 0:00:00]} 56. f4 {[%emt 0:00:00]} Ra3+ {[%emt 0:00:00]} 57. Kg4 {[%emt 0:00:00]} Qd7+ {[%emt 0:00:00]} 58. f5 {[%emt 0:00:00]} Ra4+ {[%emt 0:00:00]} 0-1

[Event "Skalica SCHAEFFLER Open 2019"]
[Site "Skalica"]
[Date "2019.08.27"]
[Round "4.7"]
[White "Matusina, Miroslav"]
[Black "Novomeska, Karin"]
[Result "1/2-1/2"]
[ECO "A03"]
[WhiteElo "1644"]
[BlackElo "1269"]
[Annotator "NA"]
[PlyCount "48"]
[EventDate "2019.08.25"]
[EventType "swiss"]
[EventCountry "SVK"]
[SourceTitle "playchess.com"]
[Source "ChessBase"]
[SourceQuality "1"]
[TimeControl "40/5400+30:1800+30"]

1. f4 {[%emt 0:00:00]} c6 {[%emt 0:00:24]} 2. Nf3 {[%emt 0:00:12]} d5 {[%emt 0:00:06]} 3. e3 {[%emt 0:00:14]} Nf6 {[%emt 0:01:03]} 4. b3 {[%emt 0:00:11]} Bg4 {[%emt 0:05:21]} 5. Bb2 {[%emt 0:00:50]} e6 {[%emt 0:04:37]} 6. Be2 {[%emt 0:00:22]} Be7 {[%emt 0:01:01]} 7. O-O {[%emt 0:02:01]} O-O {[%emt 0:01:47]} 8. Ne5 {[%emt 0:00:34]} Bxe2 {[%emt 0:00:38]} 9. Qxe2 {[%emt 0:00:09]} Nbd7 {[%emt 0:00:27]} 10. Nf3 {[%emt 0:00:35]} Qc7 {[%emt 0:05:59]} 11. Nc3 {[%emt 0:03:33]} Rfe8 {[%emt 0:01:01]} 12. Nd1 {[%emt 0:03:16]} Bd6 {[%emt 0:02:11]} 13. Nf2 {[%emt 0:06:46]} e5 {[%emt 0:04:55]} 14. fxe5 {[%emt 0:04:19]} Nxe5 {[%emt 0:03:11]} 15. Bxe5 {[%emt 0:06:42]} Bxe5 {[%emt 0:01:18]} 16. Nxe5 {[%emt 0:03:03]} Qxe5 {[%emt 0:04:28]} 17. Nd3 {[%emt 0:04:12]} Qg5 {[%emt 0:04:01]} 18. Rf4 {[%emt 0:02:07]} Re4 {[%emt 0:14:47]} 19. Raf1 {[%emt 0:05:27]} Rxf4 {[%emt 0:01:54]} 20. Rxf4 {[%emt 0:00:36]} Re8 {[%emt 0:02:02]} 21. g3 {[%emt 0:05:30]} Re4 {[%emt 0:03:29]} 22. Nc5 {[%emt 0:02:14]} Rxf4 {[%emt 0:00:48]} 23. exf4 {[%emt 0:00:27]} Qf5 {[%emt 0:00:21]} 24. d3 {[%emt 0:03:57]} b6 {[%emt 0:00:59]} 1/2-1/2